{"text_format":"1","workbook":"xlsx","n_sheets":10,"sheets":["Data","Data1","Branch Transfer","تحويلات الأقسام","ف. تحويلات الفروع","ف. تحويلات الأقسام","Test1","Test2","Sheet1","List"],"not_rendered":{"charts":0,"images":1,"macros":1,"external_links":0,"defined_names":6,"comments":0,"pivot_tables":0},"unopened":[],"bounds":{"document_bytes":16777216,"sheet_cells":100000,"rows_first":2000,"rows_last":500,"rows_between":2000,"halvings":0,"cell_chars":16384,"cell_head_chars":4096},"cells_cut":0,"cells_raw":0,"read":"whole","date_system":"1900"}

{"sheet":"Data","index":0,"n_rows":743,"n_cols":8,"rows_kept":743,"cut":false,"hidden":false,"merged":[]}
["رقم الصنف","اسم الصنف","الوحدة",null,"تومية بيضاء دكما ",{"$f":"MATCH($E$1,B:B,0)","v":263},null,{"$f":"MATCH($G$1,A:A,0)","v":2}]
[0]
[1,"برغل اسمر","كجم"]
[2,"برغل ناعم","كجم"]
[3,"حمص صغير","كجم"]
[4,"حمص كبير","كجم"]
[5,"عدس مجروش","كجم"]
[6,"فول يابس بالكيلو","كجم"]
[7,"كربونة","كجم"]
[8,"بكمبودر","علبة 50 ظ"]
[9,"سميد","كجم"]
[10,"طحين خمس نجوم","كجم"]
[11,"فانيليا","علبة 500غ"]
[12,"كعك ناعم","كجم"]
[13,"نشاء","كجم"]
[14,"نشاء ذرة","كجم"]
[15,"كريمة شانتيه","كجم"]
[16,"رز بسمتي","كجم"]
[17,"رز مصري","كجم"]
[18,"سكر ابيض","كجم"]
[19,"سكر بودرة","كجم"]
[20,"معكرونة بشاميل","كجم"]
[21,"جوز","كجم"]
[22,"فستق حلبي","كجم"]
[23,"فستق سوداني","كجم"]
[24,"كاجو مفلق انصاف","كجم"]
[25,"لوز","كجم"]
[26,"بندق","كجم"]
[27,"كاجو صحيح","كجم"]
[28,"ملح خشن","كجم"]
[29,"ملح صيني","كجم"]
[30,"ملح ناعم","كجم"]
[31,"ملح صخري","كجم"]
[32,"جوز الهند","كجم"]
[33,"ملون صحي طراطزين","كجم"]
[34,"مستكة","كجم"]
[35,"ملون صحي غروب الشمس","كجم"]
[36,"اورغانو","كجم"]
[37,"بهارات الكاري","كجم"]
[38,"بهارات ماجي","كجم"]
[39,"بهارات شاورما دجاج","طحنة 5ك"]
[40,"بهارات شاورما لحمة","طحنة 4.5ك"]
[41,"بهارات فلافل","كجم"]
[42,"بهارات مشكلة","كجم"]
[43,"جوزة الطيب","كجم"]
[44,"حبة البركة","كجم"]
[45,"حلبة ناعمة","كجم"]
[46,"حمض الليمون","كجم"]
[47,"روز ماري","كجم"]
[48,"زنجبيل ناعم","كجم"]
[49,"قلي","كجم"]
[50,"مبيض","كجم"]
[51,"بودرة كريم كراميل","كجم"]
[52,"حليب بودرة كامل الدسم","كجم"]
[53,"سماق","كجم"]
[54,"شطة حدة","كجم"]
[55,"شطة حلوة بابريكا","كجم"]
[56,"فلفل ابيض","كجم"]
[57,"فلفل اسود","كجم"]
[58,"قرفة عيدان","كجم"]
[59,"قرفة ناعمة","كجم"]
[60,"قرنفل حب","كجم"]
[61,"قرنفل ناعم","كجم"]
[62,"كركم","كجم"]
[63,"كزبرة حب","كجم"]
[64,"كزبرة ناعمة","كجم"]
[65,"كمون ناعم","كجم"]
[66,"محلب","كجم"]
[67,"نعنع يابس بلدي","كجم"]
[68,"هيل حب","كجم"]
[69,"ورق غار","كجم"]
[70,"بهارات مشوي","طحنة 5.5ك"]
[71,"بهارات بروستد","طحنة 5ك"]
[72,"خلطة بهارات فروج فحم","كجم"]
[73,"خلطة بهارات طحين بروستد","كجم"]
[74,"خلطة بهارات شاورما دجاج","كجم"]
[75,"خلطة بهارات فروج مشوي","كجم"]
[76,"خلطة بهارات كريسبي","كجم"]
[77,"ماجي علب 1 كغ","كجم"]
[78,"خلطة بهارات رش دجاج","كجم"]
[79,"خلطة بهارات رش بروستد","كجم"]
[80,"خلطة بهارات رش بطاطا","كجم"]
[81,"خلطة بهارات بيض","كجم"]
[82,"خلطة بهارات طحين غربي","كجم"]
[83,"خلطة بهارات فاهيتا","كجم"]
[84,"خلطة بهارات مكسيكي","كجم"]
[85,"خلطة بهارات سجق","كجم"]
[86,"خلطة بهارات فرانشيسكو","كجم"]
[87,"خلطة بهارات كباب دجاج","كجم"]
[88,"خلطة بهارات اسكالوب","كجم"]
[89,"خلطة بهارات شيش فرن","كجم"]
[90,"خلطة بهارات ستيك دجاج","كجم"]
[91,"خلطة بهارات برغر دجاج","كجم"]
[92,"خلطة بهارات شيش غربي","كجم"]
[93,"خلطة بهارات شيش شرقي","كجم"]
[94,"خلطة بهارات كبدة دجاج","كجم"]
[95,"خلطة بهارات برغر لحمة","كجم"]
[96,"خلطة بهارات سوبريم","كجم"]
[97,"خلطة حشوة معكرونة لحمة","كجم"]
[98,"خلطة حشوة معكرونة دجاج","كجم"]
[99,"خلطة صلصة فحم وشاورما","كجم"]
[100,"خلطة بهارات رز","كجم"]
[101,"اكياس شفافة 1 كغ","كجم"]
[102,"اكياس سادة كبير","كجم"]
[103,"اكياس شفافة كبيرة","كجم"]
[104,"رول ستريتش","قطعة"]
[105,"فحم","قطعة"]
[106,"زيت زيتون مخلوط","كجم"]
[107,"زيت فقسة خام","كجم"]
[108,"زيت صني","بيدون 18 كغ"]
[109,"زيت صويا صولو","عبوة 2.7 لتر"]
[110,"زيت صني 4.4","عبوة زيت صني 3.96كغ"]
[111,"صوص باربكيو 5 كغ","كجم"]
[112,"عسل اسود","كجم"]
[113,"خردل 5 كغ","كجم"]
[114,"دبس رمان رش","كجم"]
[115,"دبس رمان ملحمة","كجم"]
[116,"صوص صويا","عبوة 0.5 لتر"]
[117,"طحينة خام","كجم"]
[118,"كاتشب غالون 10 كغ","كجم"]
[119,"هوت صوص 5 كغ","كجم"]
[120,"عسل سليكوز","كجم"]
[121,"كريز - كرز زينة","كجم"]
[122,"ماء زهر","ليتر"]
[123,"خل ابيض هاينز","ليتر"]
[124,"خل تفاح","ليتر"]
[125,"روح الخل","كجم"]
[126,"دبس بندورة علب الدرة","علبة 4.4 كغ"]
[127,"فطر AMR","علبة 1.75كغ"]
[128,"جبنة عكاوي","كجم"]
[129,"حليب 1 لتر","كجم"]
[130,"سمنة جاموس بيضة","كجم"]
[131,"سمنة نباتي 11 كغ","تنكة 11 كغ"]
[132,"سمنة بقري لافاش","كجم"]
[133,"سمنة بقري N&Z","كجم"]
[134,"كريمة خفق 1 كغ للحلويات","كجم"]
[135,"زيتون اسود شرايح 1.5 كغ","علبة 1.2كغ"]
[136,"فوم 0.5 كغ","قطعة"]
[137,"فوم 1 كغ","قطعة"]
[138,"فوم 2 كغ","قطعة"]
[139,"علبة 4 اونز","قطعة"]
[140,"غطاء علبة 2 او 4 اونز","قطعة"]
[141,"علبة صوص 2 اونز","قطعة"]
[142,"علبة 110 مل مخلل","قطعة"]
[143,"معالق بلاستيك","قطعة"]
[144,"زبادي محلاية","قطعة"]
[145,"كاسات بلاستيك ابيض","قطعة"]
[146,"رول سلفر 60 متر","قطعة"]
[147,"اكياس مخلل 9×14","كجم"]
[148,"شهبا شرايح","كجم"]
[149,"اكياس شفافة مطبوعة 35*26","كجم"]
[150,"زيت قلي ندى","تنكة 16 كغ"]
[151,"ستريتش براميل صناعي","قطعة"]
[152,"ورق زبدة","قطعة"]
[153,"ستيكرات دوائر تومية","قطعة"]
[154,"ستيكرات دوائر صفراء","قطعة"]
[155,"ستيكرات غربي","قطعة"]
[156,"عواد شيش","رزمة 50ق"]
[157,"سائل جلي 10 كغ","كجم"]
[158,"معطر","ليتر"]
[159,"مساحة كبيرة","قطعة"]
[160,"مكنسة","قطعة"]
[161,"قطرونة","كجم"]
[162,"اكياس قمامة","كجم"]
[163,"سيف","قطعة"]
[164,"فوط","قطعة"]
[165,"ليف جلي","قطعة"]
[166,"عصاية مساحة خشب","قطعة"]
[167,"قاتل ذباب","ليتر"]
[168,"قاتل ناموس","ليتر"]
[169,"غوانتي علبة","قطعة"]
[170,"غوانتي كيس","قطعة"]
[171,"كلور","ليتر"]
[172,"كمامات","قطعة"]
[173,"خل ابيض دكما","ليتر"]
[174,"بهارات سناك 165","كجم"]
[175,"بهارات طحين بروستد 400","كجم"]
[176,"بهارات رز 800","كجم"]
[177,"بهارات بيض 100","كجم"]
[178,"بهارات رش بروستد 220","كجم"]
[179,"بهارات رش بطاطا 220","كجم"]
[180,"بهارات رش دجاج مشوي 200","كجم"]
[181,"جزمة بلاستيك","قطعة"]
[182,"طواقي قطن","قطعة"]
[183,"مريول مشمع","قطعة"]
[184,"دفتر اوردر","قطعة"]
[185,"رول تغليف 12 سم","كجم"]
[186,"رول تغليف 19 سم","كجم"]
[187,"شوك بلاستيك","قطعة"]
[188,"اكياس سادة وسط","كجم"]
[189,"فوم كبة 1 عين","قطعة"]
[190,"علبة 3 اونز","قطعة"]
[191,"اكياس شفافة ريسبي","كجم"]
[192,"رول تشكيل 12 سم","كجم"]
[193,"علبة كرتون 30 اونز مطبوع","قطعة"]
[194,"طبق سلفر 685","قطعة"]
[195,"55كريسبي متبل","كجم"]
[196,"Pos ريش ضاني فريش","قطعة"]
[197,"Pos ستيك ضاني فريش","قطعة"]
[198,"Pos صوص مندي وسط","قطعة"]
[199,"اسانس لون زهر","كجم"]
[200,"اسكالوب متبل 55","كجم"]
[201,"اسية - شرقية","كجم"]
[202,"اصابع كاجو - شرقية","كجم"]
[203,"اكياس قماش كلوة صغير","كجم"]
[204,"اكياس قماش يد صغير","قطعة"]
[205,"اكياس قماش يد كبير","قطعة"]
[206,"اكياس مطبوعة صغير","كجم"]
[207,"اكياس مطبوعة كبير","كجم"]
[208,"اكياس مطبوعة وسط","كجم"]
[209,"ايبرون قماش مطبوع","قطعة"]
[210,"بابا غنوج دكما","كجم"]
[211,"باتسيري حلويات","كجم"]
[212,"باذنجان بلدي","كجم"]
[213,"باذنجان بيض العجل","كجم"]
[214,"باذنجان مشوي خام","كجم"]
[215,"بازيلاء مجمدة","كجم"]
[216,"باط ضاني","كجم"]
[217,"باكت بطاطس","قطعة"]
[218,"بدوة دكما","كجم"]
[219,"برازق سادة علبة","علبة 500غ"]
[220,"برازق سادة علبة 1كغ","كجم"]
[221,"برازق سادة كغ","كجم"]
[222,"برغر دجاج متبل 100","قطعة"]
[223,"برغر لحم متبل 100","قطعة"]
[224,"بريزيدانت جبنة مثلثات","علبة 8 ق"]
[225,"بسطرمة","كجم"]
[226,"بشاميل مطبوخ","كجم"]
[227,"بصل اخضر","كجم"]
[228,"بصل بودرة","كجم"]
[229,"بصل شوي","كجم"]
[230,"بصل يابس ابيض","كجم"]
[231,"بطاطا شرائح","قطعة"]
[232,"بطاطا طبيعي","كجم"]
[233,"بطاطا فارم فريتس","كيس فارم 2.5"]
[234,"بطاطا فروزينا","قطعة"]
[235,"بطاطا مفرزة","كجم"]
[236,"بقدونس","كجم"]
[237,"بقدونس مفروم","كجم"]
[238,"بلورية - شرقية","كجم"]
[239,"بندورة صلصا","كجم"]
[240,"بندورة للشوي","كجم"]
[241,"بندورة مخوص","كجم"]
[242,"بندورة مطبوخة","كجم"]
[243,"بنزوات الصوديوم","كجم"]
[244,"بهارات دجاج","كجم"]
[245,"بيبسي 1 ليتر","صندوق 6 ق"]
[246,"بيبسي 250 مل","صندوق 24 ق"]
[247,"بيبسي برتقال كانز 330 مل","صندوق 24 ق"]
[248,"بيبسي تفاح كانز 330 مل","صندوق 24 ق"]
[249,"بيبسي سفن كانز 330 مل","صندوق 24 ق"]
[250,"بيبسي كولا كانز 330 مل","صندوق 24 ق"]
[251,"بيتزا كبير كرتون","قطعة"]
[252,"بيتزا وسط كرتون","قطعة"]
[253,"بيض بوزن 1.980 كغ","صحن بيض 1980"]
[254,"بيضات مخاصي عجل شمبري","كجم"]
[255,"بيضات مخاصي ني ضاني","كجم"]
[256,"تتبيلة صفيحة","قطعة"]
[257,"ترابيع بلاستيك صغيرة","قطعة"]
[258,"ترابيع بلاستيك كبيرة","قطعة"]
[259,"تمر عجوة حب","كجم"]
[260,"تمر هندي","كجم"]
[261,"تومية بيضاء دكما ","كجم"]
[262,"تومية بيضاء دكما 1.5","كيس 1.5"]
[263,"تومية بيضاء سندويش 40","قطعة"]
[264,"تومية بيضاء فرخة 140","قطعة"]
[265,"تومية بيضاء كبيرة 400","قطعة"]
[266,"تومية بيضاء نصف فرخة 60","قطعة"]
[267,"تومية حمراء دكما","كجم"]
[268,"تومية حمراء دكما 1.5","كيس 1.5"]
[269,"تومية حمراء سندويش 40","قطعة"]
[270,"تومية حمراء نص فرخة","قطعة"]
[271,"تومية صفراء دكما","كجم"]
[272,"تومية صفراء دكما 1.5","كيس 1.5"]
[273,"تومية غربي دكما","كجم"]
[274,"تومية غربي دكما 1.5","كيس 1.5"]
[275,"ثلج","قطعة"]
[276,"ثوم بودرة","كجم"]
[277,"ثوم صيني","كجم"]
[278,"ثوم مفصفص","كجم"]
[279,"جاكيت ديليفري","قطعة"]
[280,"جبنة حلوم","كجم"]
[281,"جبنة رومي - تركي","كجم"]
[282,"جبنة شامية متبلة للمعجنات","كجم"]
[283,"جبنة شيدر سلايد","باكت 48 ق"]
[284,"جبنة متبلة للمعجنات دكما","كجم"]
[285,"جبنة محلية للنابلسية من العكاوي","كجم"]
[286,"جراكن بلاستيك فارغة مع غطاء","قطعة"]
[287,"جرجير","كجم"]
[288,"جزر","كجم"]
[289,"جلاب","كجم"]
[290,"جيلاتين عادي","كجم"]
[291,"حامل طبق 1135","قطعة"]
[292,"حامل طبق 1850","قطعة"]
[293,"حامل طبق 3587","قطعة"]
[294,"حشوة فرولة","كجم"]
[295,"حشوة كبة خام","كجم"]
[296,"حشوة كبة مشوية","كجم"]
[297,"حشوة كبة مقلية","كجم"]
[298,"حشوة معكرونة دجاج 100","قطعة"]
[299,"حشوة معكرونة لحمة 100","قطعة"]
[300,"حشوة منغا","كجم"]
[301,"حلاوة الجبن","كجم"]
[302,"حلاوة جبن محشية قشطة","كجم"]
[303,"حليب بقري","كجم"]
[304,"حليب جاموس","كجم"]
[305,"حمص حب مسلوق دكما","كجم"]
[306,"حمض وثوم دكما","كجم"]
[307,"خبز سياحي 10 رغيف","كيس خبز 10"]
[308,"خبز سياحي 3 رغيف","كيس خبز 3"]
[309,"خبز سياحي 5 رغيف","كيس خبز 5"]
[310,"خبز سياحي شاورما","قطعة"]
[311,"خبز صاج الي - مطبق","قطعة"]
[312,"خبز صاج مفرود","قطعة"]
[313,"خبز صمون فرنسي","قطعة"]
[314,"خبز كايزر همبرغر","قطعة"]
[315,"خبز ماريا","قطعة"]
[316,"خس","كجم"]
[317,"خل ابيض - للتصفية","قطعة"]
[318,"خل تفاح خام","كجم"]
[319,"خليط هريسة مصنع محلي 2.365","كجم"]
[320,"خميرة","باكت 450 غ"]
[321,"خواريف حية - عايشة","كجم"]
[322,"خيار","كجم"]
[323,"خياس - اللحم الثروة","كجم"]
[324,"خياس - شاورما الدجاج الثروة","كجم"]
[325,"خياس - شاورما اللحمة الثروة","كجم"]
[326,"دبس بندورة دكما","كجم"]
[327,"دبس رمان خام","كجم"]
[328,"دبس رمان مصنع","كجم"]
[329,"دبس فليفلة مطحونة دكما","كجم"]
[330,"دبوس ني دجاج","كجم"]
[331,"دجاج ني بانيه","كجم"]
[332,"دجاج ني بروستد","كجم"]
[333,"دجاج ني بروستد متبل 1200","قطعة"]
[334,"دجاج ني شواية","كجم"]
[335,"دجاج ني شواية متبل 1650","قطعة"]
[336,"دجاج ني فحم","كجم"]
[337,"دجاج ني فحم مشمع 1400","قطعة"]
[338,"دجاج ني مجروم","كجم"]
[339,"دجاج ني مسحب متبل 1400","قطعة"]
[340,"دفتر حجز دور","قطعة"]
[341,"دولما - شرقية","كجم"]
[342,"ذرة صفرة","علبة 250غ"]
[343,"راحة الحلقوم - ملبن","كجم"]
[344,"رز ابيض مطبوخ","كجم"]
[345,"رز عروس مطبوخ","كجم"]
[346,"رز كبسة مطبوخ","كجم"]
[347,"رقبة شمبري مجمد","كجم"]
[348,"رمان","كجم"]
[349,"رول سلفر 150 متر","قطعة"]
[350,"رول كاشير","قطعة"]
[351,"ريش ضاني","كجم"]
[352,"زانثان - زان زان","كجم"]
[353,"زبدة نباتي فيرن","كجم"]
[354,"زبدية شوربة رقم 3","قطعة"]
[355,"زبدية فتة رقم 5","قطعة"]
[356,"زبدية فول مربع 16.5سم","قطعة"]
[357,"زبدية موجة كريستال 1/2 كغ","قطعة"]
[358,"زبدية موجة كريستال صغيرة","قطعة"]
[359,"زبيب","كجم"]
[360,"زجاجة خردل صالة","قطعة"]
[361,"زجاجة كاتشب صالة","قطعة"]
[362,"زجاجة هوت صوص صالة","قطعة"]
[363,"زروا ضاني - شاورما","كجم"]
[364,"زعتر مناقيش","كجم"]
[365,"زنجر متبل 60","كجم"]
[366,"زورة - زوار ضاني","كجم"]
[367,"زيت زيتون فرط","كجم"]
[368,"زيت فقسة مصنع","كجم"]
[369,"زيتون اخضر شرائح","كجم"]
[370,"زيتون اخضر كامل","كجم"]
[371,"سائل يدين","كجم"]
[373,"سبانخ خضرة","كجم"]
[374,"سبانخ مطبوخة غير متبلة","كجم"]
[375,"ستيك دجاج متبل 110","كجم"]
[376,"ستيك عجل شمبري","كجم"]
[377,"ستيك لحم متبل 110","كجم"]
[378,"ستيكرات مصنعات","قطعة"]
[379,"سجق متبل","كجم"]
[380,"سجقات وقبوات ضاني","كجم"]
[381,"سخرة صفيحة","قطعة"]
[382,"سكر ظرف","كجم"]
[383,"سكين بلاستيك","قطعة"]
[384,"سكين حديد","قطعة"]
[385,"سكين نصل طويل","قطعة"]
[386,"سكين نصل عريض","قطعة"]
[387,"سلامي","كجم"]
[388,"سلطة خضار دكما","كجم"]
[389,"سلطة زيتون معجنات","كجم"]
[390,"سلطة كول سلو دكما","كجم"]
[391,"سمسم","كجم"]
[392,"سمنة مخلوطة من صواني الحلويات","كجم"]
[393,"سوبريم سندويش متبل 150","قطعة"]
[394,"سوبريم وجبات 75","قطعة"]
[395,"سوبيا بودرة","كجم"]
[396,"سودة ني دجاج","كجم"]
[397,"سودة ني ضاني","كجم"]
[398,"سوربات البوتاسيوم","كجم"]
[399,"سي ام سي CMC","كجم"]
[400,"سيروب سكر خفيف","كجم"]
[401,"سيروب سكر وسط مصنع محلي","كجم"]
[402,"شاورما دجاج متبل","كجم"]
[403,"شاورما لحم شمبري متبل","كجم"]
[404,"شاي اخضر","قطعة"]
[405,"شاي ليبتون ظرف","علبة 100ظ"]
[406,"شبت اخضر","كجم"]
[407,"شبكات فروج","قطعة"]
[408,"شحمة ضاني","كجم"]
[409,"شرحات ضاني","كجم"]
[410,"شرحات عجل شمبري","كجم"]
[411,"شرحات عجل شمبري - شاورما","كجم"]
[412,"شرحات مصنعة ضاني","كجم"]
[413,"شقف ضاني","كجم"]
[414,"شقف عجل شمبري","كجم"]
[415,"شقف مصنعة ضاني","كجم"]
[416,"شليمون مغلف","قطعة"]
[417,"شمندر - بنجر","كجم"]
[418,"شواكل وزورة عجل شمبري","كجم"]
[419,"شورتينج","كجم"]
[420,"شوك حديد","قطعة"]
[421,"شوكولا سائلة","كجم"]
[422,"شوكولا قالب","كجم"]
[423,"شيش شرقي متبل 125","كجم"]
[424,"شيش غربي متبل 100","كجم"]
[425,"شيش معجنات متبل","كجم"]
[426,"صابون يدين","قطعة"]
[427,"صاج وسط","قطعة"]
[428,"صبغة كراميل","كجم"]
[429,"صحن بيتزا صغير","قطعة"]
[430,"صحن بيتزا كبير","قطعة"]
[431,"صحن بيضوي كبير","قطعة"]
[432,"صحن بيضوي وسط","قطعة"]
[433,"صحن حلو كرتون","قطعة"]
[434,"صحن فخار","قطعة"]
[435,"صحن كريستال صغير قياس 22","قطعة"]
[436,"صحن كريستال كبير قياس 30","قطعة"]
[437,"صحن كريستال وسط قياس 27","قطعة"]
[438,"صحن مربع 25سم","قطعة"]
[439,"صحن مربع عميق 20سم","قطعة"]
[440,"صحن مستطيل 34سم","قطعة"]
[441,"صحن مستطيل 38سم","قطعة"]
[442,"صحن مسطح 17.5 سم مربع","قطعة"]
[443,"صحن مسطح 21 سم فنادق","قطعة"]
[444,"صحن مقسم 3 خانة","قطعة"]
[445,"صدور دجاج ني بجلدة","كجم"]
[446,"صفيحة بندورة للمعجنات","كجم"]
[447,"صلصة بيتزا دكما","كجم"]
[448,"صلصة شاورما دكما","كجم"]
[449,"صلصة فحم دكما","كجم"]
[450,"صلصة مندي دكما","كجم"]
[451,"صندوق دليفري","قطعة"]
[452,"صواني ستالس قياس 22 - ام النارين","قطعة"]
[455,"صينية معدنية لام النارين قياس 22","قطعة"]
[459,"ضهرات وفتايل عجل شمبري","كجم"]
[460,"طاقة نقانق","قطعة"]
[461,"طاقية قماش","قطعة"]
[462,"طبق سلفر 1135","قطعة"]
[463,"طبق سلفر 1850","قطعة"]
[464,"طبق سلفر 1980","قطعة"]
[465,"طبق سلفر 2400","قطعة"]
[466,"طبق سلفر 3587","قطعة"]
[467,"طبق سلفر 420","قطعة"]
[468,"طبق سلفر 6130 منسف","قطعة"]
[469,"طبق سلفر 7586 شختورة","قطعة"]
[470,"طحينة سندويش 40","قطعة"]
[471,"طرطور دكما","كجم"]
[472,"طونة","علبة تونة 140"]
[473,"ظرف فلافل صغير","قطعة"]
[474,"ظرف فلافل كبير","قطعة"]
[475,"ظرف فلافل وسط","قطعة"]
[476,"عجوة مطحونة للمعمول","كجم"]
[477,"عجين كبة خام","كجم"]
[478,"عجين معجنات","كجم"]
[479,"عجينة فلافل دكما","كجم"]
[480,"عجينة كنافة مدلوقة","كجم"]
[481,"عش البلبل فارغ","كجم"]
[482,"عش البلبل فستق حلبي صغير - شرقية","كجم"]
[483,"عش البلبل كاجو صغير - شرقية","كجم"]
[484,"عش البلبل مكسرات 90","قطعة"]
[485,"عصاعيص ضاني","كجم"]
[486,"عصير برتقال 1 ليتر","قطعة"]
[487,"عصير تمر هندي 1 ليتر","قطعة"]
[488,"عصير جلاب 1 ليتر","قطعة"]
[489,"عصير سوبيا 1 ليتر","قطعة"]
[490,"عصير عرق سوس 1 ليتر","قطعة"]
[491,"عصير لبن عيران 1 ليتر","قطعة"]
[492,"عصير ليمون 1 ليتر","قطعة"]
[493,"عصير ليمون 1 ليتر Pos","قطعة"]
[494,"عصير ليمون 1.5 ليتر Pos","قطعة"]
[495,"عصير ليمون طبيعي Pos","قطعة"]
[496,"عصير ليمون مع نعنع Pos","قطعة"]
[498,"علبة بطاطا كومبو","قطعة"]
[499,"علبة حلويات شرقية مشكلة سعة 1 كغ","قطعة"]
[500,"علبة حلويات شرقية مشكلة سعة 650 غ","قطعة"]
[501,"علبة حلويات صغيرة","قطعة"]
[502,"علبة رز صغيرة","قطعة"]
[503,"علبة سلطة 750 مل","قطعة"]
[504,"علبة سلطة صغيرة","قطعة"]
[505,"علبة فتة 40 اونز مطبوع","قطعة"]
[506,"علبة كشري","قطعة"]
[507,"علبة مايونيز 180 سكيور","قطعة"]
[508,"علبة مخلل سندويش","قطعة"]
[514,"غطاء 1 عين صغير","قطعة"]
[515,"غطاء 1 عين كبير","قطعة"]
[516,"غطاء 1135","قطعة"]
[517,"غطاء 1850","قطعة"]
[518,"غطاء 1980","قطعة"]
[519,"غطاء 3 عين صغير version2","قطعة"]
[520,"غطاء 3 عين كبير","قطعة"]
[521,"غطاء 3587","قطعة"]
[522,"غطاء 4 عين كبير","قطعة"]
[523,"غطاء 420","قطعة"]
[524,"غطاء 685","قطعة"]
[525,"غطاء علبة 30 اونز","قطعة"]
[526,"غطاء علبة 40 اونز","قطعة"]
[527,"غطاء علبة رز صغيرة","قطعة"]
[528,"فاهيتا متبل 100","قطعة"]
[529,"فجل","كجم"]
[530,"فخاد عجل شمبري","كجم"]
[531,"فخاد ني دجاج","كجم"]
[532,"فخد شمبري مجمد","كجم"]
[533,"فرانشيسكو متبل 100","قطعة"]
[535,"فريز طازج","كجم"]
[536,"فريكة","كجم"]
[537,"فريكة مطبوخة","كجم"]
[538,"فستق مبشور","كجم"]
[539,"فلفلة خضارء بارد","كجم"]
[540,"فليفلة الوان","كجم"]
[541,"فليفلة خضراء","كجم"]
[542,"فليفلة خضراء حارة","كجم"]
[543,"فليفلة شوي","كجم"]
[544,"فناجين ورقية للمفروكة","قطعة"]
[546,"فول مسلوق حب دكما","كجم"]
[547,"فوم 1/8","قطعة"]
[548,"فوم وجبة","قطعة"]
[549,"فيصلية فستق 85","قطعة"]
[550,"فيصلية قشطة 115","قطعة"]
[551,"قريشة","كجم"]
[552,"قشطة للحلو","كجم"]
[559,"قطر للحلويات دكما","كجم"]
[560,"قميص بسطة رمادي","قطعة"]
[561,"قميص سائق اسود","قطعة"]
[562,"قميص صالة ازرق","قطعة"]
[563,"قميص كاشير رمادي","قطعة"]
[564,"قناني بلاستيك خل","قطعة"]
[565,"قناني بلاستيك عصير","قطعة"]
[567,"قهوة سورية دكما","كجم"]
[568,"كاتشب دكما مصنع","كجم"]
[569,"كاتشب ظرف","كرتونة 1000 ظ"]
[570,"كاسات اسبريسو كرتون","قطعة"]
[571,"كاسات شاي كرتون","قطعة"]
[572,"كاسات شفافة بلاستيك","قطعة"]
[573,"كاسة مخلل","قطعة"]
[574,"كاسترد مصنع محلي","كجم"]
[575,"كباب دجاج مفروم","كجم"]
[576,"كباب ضاني","كجم"]
[577,"كبة مشوية مشمعة 120","قطعة"]
[578,"كبة مقلية مشمعة 100","قطعة"]
[579,"كبدة اسكندراني مسلوقة","كجم"]
[580,"كبدة اسكندراني مطبوخ","كجم"]
[581,"كبدة دجاج مسلوقة","كجم"]
[582,"كبدة عجل شمبري","كجم"]
[583,"كبدة فراخ مطبوخ","كجم"]
[584,"كبوتشي","كجم"]
[595,"كراسي بيتزا","قطعة"]
[596,"كرافس اخضر","كجم"]
[597,"كرتون بطاطا صغير","قطعة"]
[598,"كرتون بطاطا كبير","قطعة"]
[599,"كرتون بطاطا وسط","قطعة"]
[600,"كرتون تغليف - الثروة","قطعة"]
[601,"كرتون ماريا صغير","قطعة"]
[602,"كرتون ماريا كبير","قطعة"]
[603,"كرتون همبرغر","قطعة"]
[604,"كرتونة بروستد صغير 4 قطع","قطعة"]
[605,"كرتونة بروستد كبير 12 قطعة","قطعة"]
[606,"كرتونة بروستد وسط 8 قطع","قطعة"]
[610,"كرتونة سندويش صغير","قطعة"]
[611,"كرتونة سندويش كبير","قطعة"]
[613,"كرشة ضاني كاملة","قطعة"]
[614,"كرمب - ملفوف","كجم"]
[615,"كرمب - ملفوف احمر","كجم"]
[616,"كريسبي وجبات - 3 قطع 60","كجم"]
[617,"كريسبي وجبات - 5 قطع 60","كجم"]
[618,"كريمة طبخ 1 كغ","كجم"]
[619,"كزبرة خضراء","كجم"]
[620,"كفرات شوك و سكاكين","قطعة"]
[621,"كفرات شوك و معالق","قطعة"]
[622,"كفرات معالق و شوك و سكين","قطعة"]
[624,"كلوريد الكالسيوم","كجم"]
[625,"كنافة اورانج","كجم"]
[630,"كنافة عصملية بدون قطر صواني","كجم"]
[636,"كنافة مدلوقة مع قشطة صواني","كجم"]
[640,"كنافة مغشوشة بدون قطر صواني","كجم"]
[645,"كنافة نابلسية بدون قطر صواني","كجم"]
[646,"كنافة نابلسية خشنة بدون قطر صواني","كجم"]
[649,"كوردون بلو متبل 280","قطعة"]
[650,"كوسا","كجم"]
[651,"كول وشكور - شرقية","كجم"]
[652,"كيس ورق سندويش صغير","قطعة"]
[653,"لانشون","كجم"]
[654,"لبن رائب مصنع","كجم"]
[655,"لحم راس ضاني","كجم"]
[656,"لحم كامل ضاني","كجم"]
[657,"لحمة حواوشي دكما","كجم"]
[658,"لحمة مفرومة شمبري - شاورما","كجم"]
[659,"لحمة مفرومة مطبوخة للبرك","كجم"]
[660,"لحمة موزات ضاني","كجم"]
[661,"لسان العصفور","باكت 400غ"]
[662,"لسان ضاني","قطعة"]
[663,"لومي","كجم"]
[664,"لية ضاني","كجم"]
[665,"لية ضاني مغلفة","كجم"]
[666,"ليمون بلدي مصري","كجم"]
[667,"ليمون سوري","كجم"]
[668,"ماء جيب 330 مل","صندوق 24 ق"]
[669,"ماء صغير 0.6 لتر","صندوق 20 ق"]
[670,"مبرومة - شرقية","كجم"]
[671,"متبل دكما","كجم"]
[672,"محارم سفرة 100 منديل","قطعة"]
[673,"محارم كيس 550 منديل","قطعة"]
[674,"محلاية 215","قطعة"]
[675,"محمرة دكما","كجم"]
[676,"محمرة فحم دكما","كجم"]
[677,"محمرة معجنات دكما","كجم"]
[678,"مخلل اكياس (نصف فرخة)","قطعة"]
[679,"مخلل جزر كامل دكما","برميل"]
[680,"مخلل جزر مقطع","برميل"]
[681,"مخلل خيار كامل دكما","برميل"]
[682,"مخلل خيار مقطع","برميل"]
[683,"مخلل زهرة","كجم"]
[684,"مخلل علب - ابو المجد","قطعة"]
[685,"مخلل فليفلة بلدي","برميل"]
[686,"مخلل فليفلة مكسيكي دكما","برميل"]
[687,"مخلل لفت كامل دكما","برميل"]
[688,"مخلل لفت مقطع","برميل"]
[689,"مخلل مشكل","كجم"]
[690,"مرطبان بلاستيك - مخلل","قطعة"]
[691,"مرطبان مخلل باذنجان","قطعة"]
[692,"مرطبان مخلل جزر","قطعة"]
[693,"مرطبان مخلل خيار","قطعة"]
[694,"مرطبان مخلل زيتون","قطعة"]
[695,"مرطبان مخلل فليفلة","قطعة"]
[696,"مرطبان مخلل لفت","قطعة"]
[697,"مرطبان مخلل ليمون","قطعة"]
[698,"مرطبان مخلل مشكل","قطعة"]
[699,"مسبحة دكما","كجم"]
[700,"معالق حديد","قطعة"]
[701,"معالق صغيرة بلاستيك","قطعة"]
[702,"معكرونة مسلوقة 200","قطعة"]
[703,"معلاق ضاني كامل","قطعة"]
[709,"مفارش طاولات","كجم"]
[710,"مفرومة ضاني","كجم"]
[711,"مقادم ضاني","قطعة"]
[712,"مقشور شاورما - دجاج","كجم"]
[713,"مقشور شاورما - شمبري","كجم"]
[714,"مكسيكي مطبوخ 100","قطعة"]
[715,"ملمع زجاج","قطعة"]
[716,"موزات شمبري مجمد","كجم"]
[717,"موزات ضاني","كجم"]
[718,"موزات عجل شمبري","كجم"]
[719,"موزريلا طبيعي","كجم"]
[720,"موزريلا نباتي","كجم"]
[721,"مينيو سان","قطعة"]
[722,"مينيو عصافرة + ميامي","قطعة"]
[723,"نتر وموزات لحم شمبري","كجم"]
[724,"نخاع ضاني","قطعة"]
[725,"نسكافيه سادة","علبة 25ظ"]
[726,"نعنع اخضر","كجم"]
[727,"نكاشات اسنان","قطعة"]
[728,"نمورة بالقشطة صواني","كجم"]
[729,"نهش قشطة","قطعة"]
[730,"نواعم ضاني","كجم"]
[731,"نواعم مفرومة عجل شمبري","كجم"]
[732,"هريسة لوزصواني","كجم"]
[733,"هريسة مكسرات اكسترا صواني","كجم"]
[734,"هريسة مكسرات صواني","كجم"]
[735,"هوت صوص دكما مصنع","كجم"]
[736,"هيل ناعم","كجم"]
[737,"وجبة 1 عين صغير","قطعة"]
[738,"وجبة 1 عين كبير","قطعة"]
[739,"وجبة 3 عين صغيرة Version2","قطعة"]
[740,"ملوخية مجمدة","كيس 400جرام"]
[741,"وجبة 4 عين كبير","قطعة"]
[742,"وراك دجاج ني بالعظم","كجم"]
[743,"وراك دجاج ني بروستد متبل","قطعة"]
[744,"وراك دجاج ني مجروم","كجم"]
[745,"وربات تركية - شرقية","كجم"]
[746,"وربات فستق 70","قطعة"]
[747,"وربات قشطة 80","قطعة"]
[748,"وردات قشطة","قطعة"]
[749,"ورق زبدة صغير","قطعة"]
[750,"ورق عنب دكما","كجم"]
[751,"ورق لف سندويش","قطعة"]
[752,"ورق لف كبير","قطعة"]
[753,"يالنجي مطبوخ 25","كجم"]
[754,"يانسون يابس -","قطعة"]
[756,"مخلل خيار شرائح دكما","برميل"]
[757,"شوربة عدس","كجم"]
[758,"شوربة لسان عصفور","كيس"]
[759,"لحم شمبري اكسترا كيلو","كيلو"]
[760,"مخ ضاني","كجم"]
[761,"لحم ضاني مجروم","كجم"]
[762,"كرتونة معجنات مروحة","قطعة"]
[763,"Pos عرض البروستد","قطعة"]
[764,"بيواظ","كجم"]
[765,"تبولة كبير Pos","كجم"]
[766,"حلالي عجل","كجم"]
[767,"كبدة ضاني","كجم"]
[768,"تومية بيضاء فرخة 140","قطعة"]
[769,"عظم ضاني","كجم"]
[770,"مفصل ضاني","كجم"]
[771,"عظم عجل","كجم"]
[772,"مخلل خيار شرائح دكما","كجم"]
[773,"مخلل خيار كامل دكما","كجم"]
[774,"مخلل خيار مقطع","كجم"]
[775,"مخلل جزر كامل دكما","كجم"]
[776,"مخلل جزر مقطع","كجم"]
[777,"مخلل لفت كامل دكما","كجم"]
[778,"مخلل لفت مقطع","كجم"]
[779,"مخلل فليفلة بلدي","كجم"]
[780,"مخلل فليفلة مكسيكي دكما","كجم"]
[781,"بطاطا فارم فريتس","كرتونة"]
[782,"كنافة نوتيلا - كبير","كجم"]
[783,"كنافة كراميل - كبير","كجم"]
[784,"عش البلبل نوتيلا","كجم"]
[785,"كنافة عصملية بدون قطر صواني","كجم"]
[786,"غريبة بالقشطة بالكيلو Pos","كجم"]
[787,"وردات بالقشطة كيلو Pos","كجم"]
[788,"Pos قطايف بالقشطة","كجم"]
[789,"فيصلية نوتيلا","كجم"]
[790,"بقلاوة فستق","كجم"]
[791,"قطايف عصافيري","كجم"]
[792,"منسف مندي نصف فرخة Pos","قطعة"]
[793,"عنق ضاني","كجم"]
[794,"قطايف بالقشطة مقلية","كجم"]
[795,"قطايف بالجوز مقلية","كجم"]
[796,"كحك عجوة كغ","كجم"]
[797,"كحك جوز هند كغ","كجم"]
[798,"غريبة سادة بالكيلو","كجم"]
[799,"بندورة صلصا","كجم"]
[740,"ملوخية مجمدة","كيس 400جرام"]
[742,"ملوخية مجمدة","كيس 400جرام"]

{"sheet":"Data1","index":1,"n_rows":3,"n_cols":20,"rows_kept":3,"cut":false,"hidden":false,"merged":[]}
["إسم المستخدم","كلمة المرور","الاسم كامل","Hazem","Hazem",{"$f":"MATCH(E1,A:A,0)","v":2},"Hazem",{"$f":"MATCH(G1,A:A,0)","v":2},null,null,null,null,null,null,null,"admin",null,null,null,"Hazem"]
["Hazem",220588,"حازم سرور","ADMIN"]
["AbdAllah",654321,"عبدالله","ADMIN"]

{"sheet":"Branch Transfer","index":2,"n_rows":12,"n_cols":12,"rows_kept":12,"cut":false,"hidden":false,"merged":[]}
["0","التاريخ","من فرع","إلى فرع","م","الشهر","كود الصنف","اسم الصنف","الوحدة","الكمية","المسجل","الفرق"]
[1,"2024-05-12","ميامي","سان استيفانو",null,null,261,"تومية بيضاء دكما ","كجم",100,100,0]
[1,"2024-05-12","ميامي","سان استيفانو",null,null,263,"تومية بيضاء سندويش 40","قطعة",10,10,0]
[2,"2024-05-13","ميامي","سان استيفانو",null,null,261,"تومية بيضاء دكما ","كجم",100,100,0]
[2,"2024-05-13","ميامي","سان استيفانو",null,null,271,"تومية صفراء دكما","كجم",10,10,0]
[2,"15/05/2024","ميامي","سان استيفانو",null,null,273,"تومية غربي دكما","كجم",10,10,0]
[2,"15/05/2024","ميامي","العصافرة",null,null,222,"برغر دجاج متبل 100","قطعة",10,10,0]
[2,"15/05/2024","ميامي","العصافرة",null,null,223,"برغر لحم متبل 100","قطعة",10,10,0]
[3,"15/05/2024","العصافرة","المستودع الرئيسي",null,null,322,"خيار","كجم",56,56,0]
[3,"15/05/2024","العصافرة","المستودع الرئيسي",null,null,316,"خس","كجم",15,15,0]
[4,"16/05/2024","ميامي","سان استيفانو",null,null,261,"تومية بيضاء دكما ",100,100,0]
[4,"16/05/2024","ميامي","سان استيفانو",null,null,271,"تومية صفراء دكما",10,10,0]

{"sheet":"تحويلات الأقسام","index":3,"n_rows":315,"n_cols":12,"rows_kept":315,"cut":false,"hidden":false,"merged":[]}
["0","التاريخ","الفرع","القسم","م","الشهر","كود الصنف","اسم الصنف","الوحدة","الكمية","المسجل","الفرق"]
[1,"2024-01-31","العصافرة","وجبات العمال",null,null,530,"فخاد عجل شمبري","كجم",9,9,0]
[1,"2024-01-31","العصافرة","وجبات العمال",null,null,345,"رز عروس مطبوخ","كجم",74,74,0]
[1,"2024-01-31","العصافرة","وجبات العمال",null,null,654,"لبن رائب مصنع","كجم",40,40,0]
[1,"2024-01-31","العصافرة","وجبات العمال",null,null,215,"بازيلاء مجمدة","كجم",43,43,0]
[1,"2024-01-31","العصافرة","وجبات العمال",null,null,136,"فوم 0.5 كغ","قطعة",500,500,0]
[1,"2024-01-31","العصافرة","وجبات العمال",null,null,145,"كاسات بلاستيك ابيض","قطعة",380,380,0]
[1,"2024-01-31","العصافرة","وجبات العمال",null,null,241,"بندورة مخوص","كجم",6.5,6.5,0]
[1,"2024-01-31","العصافرة","وجبات العمال",null,null,230,"بصل يابس ابيض","كجم",7.5,7.5,0]
[1,"2024-01-31","العصافرة","وجبات العمال",null,null,541,"فليفلة خضراء","كجم",6,6,0]
[1,"2024-01-31","العصافرة","وجبات العمال",null,null,533,"فرانشيسكو متبل 100","قطعة",16,16,0]
[1,"2024-01-31","العصافرة","وجبات العمال",null,null,714,"مكسيكي مطبوخ 100","قطعة",9,9,0]
[1,"2024-01-31","العصافرة","وجبات العمال",null,null,528,"فاهيتا متبل 100","قطعة",5,5,0]
[1,"2024-01-31","العصافرة","وجبات العمال",null,null,702,"معكرونة مسلوقة 200","قطعة",21,21,0]
[1,"2024-01-31","العصافرة","وجبات العمال",null,null,226,"بشاميل مطبوخ","كجم",32,32,0]
[1,"2024-01-31","العصافرة","وجبات العمال",null,null,719,"موزريلا طبيعي","كجم",4,4,0]
[1,"2024-01-31","العصافرة","وجبات العمال",null,null,467,"طبق سلفر 420","قطعة",190,190,0]
[1,"2024-01-31","العصافرة","وجبات العمال",null,null,232,"بطاطا طبيعي","كجم",2,2,0]
[1,"2024-01-31","العصافرة","وجبات العمال",null,null,288,"جزر","كجم",2,2,0]
[1,"2024-01-31","العصافرة","وجبات العمال",null,null,334,"دجاج ني شواية","كجم",1,1,0]
[1,"2024-01-31","العصافرة","وجبات العمال",null,null,253,"بيض بوزن 1.980 كغ","صحن بيض 1980",1,1,0]
[2,"2024-01-31","العصافرة","الفول و الفلافل",null,null,305,"حمص حب مسلوق دكما","كجم",15,15,0]
[3,"2024-01-31","العصافرة","الفحم",null,null,577,"كبة مشوية مشمعة 120","قطعة",40,40,0]
[4,"2024-01-31","العصافرة","المعجنات",null,null,379,"سجق متبل","كجم",18,18,0]
[4,"2024-01-31","العصافرة","المعجنات",null,null,425,"شيش معجنات متبل","كجم",26,26,0]
[4,"2024-01-31","العصافرة","المعجنات",null,null,677,"محمرة معجنات دكما","كجم",8,8,0]
[4,"2024-01-31","العصافرة","المعجنات",null,null,282,"جبنة شامية متبلة للمعجنات","كجم",13,13,0]
[4,"2024-01-31","العصافرة","المعجنات",null,null,447,"صلصة بيتزا دكما","كجم",10,10,0]
[4,"2024-01-31","العصافرة","المعجنات",null,null,374,"سبانخ مطبوخة غير متبلة","كجم",2,2,0]
[5,"2024-01-31","العصافرة","الغربي",null,null,424,"شيش غربي متبل 100","كجم",142,142,0]
[5,"2024-01-31","العصافرة","الغربي",null,null,200,"اسكالوب متبل 55","كجم",29,29,0]
[5,"2024-01-31","العصافرة","الغربي",null,null,195,"55كريسبي متبل","كجم",131,131,0]
[5,"2024-01-31","العصافرة","الغربي",null,null,649,"كوردون بلو متبل 280","قطعة",59,59,0]
[5,"2024-01-31","العصافرة","الغربي",null,null,393,"سوبريم سندويش متبل 150","قطعة",78,78,0]
[5,"2024-01-31","العصافرة","الغربي",null,null,394,"سوبريم وجبات 75","قطعة",386,386,0]
[5,"2024-01-31","العصافرة","الغربي",null,null,375,"ستيك دجاج متبل 110","كجم",18.399999999999999,18.399999999999999,0]
[5,"2024-01-31","العصافرة","الغربي",null,null,377,"ستيك لحم متبل 110","كجم",13.2,13.2,0]
[5,"2024-01-31","العصافرة","الغربي",null,null,528,"فاهيتا متبل 100","قطعة",220,220,0]
[5,"2024-01-31","العصافرة","الغربي",null,null,533,"فرانشيسكو متبل 100","قطعة",110,110,0]
[5,"2024-01-31","العصافرة","الغربي",null,null,714,"مكسيكي مطبوخ 100","قطعة",152,152,0]
[5,"2024-01-31","العصافرة","الغربي",null,null,583,"كبدة فراخ مطبوخ","كجم",40.299999999999997,40.299999999999997,0]
[5,"2024-01-31","العصافرة","الغربي",null,null,580,"كبدة اسكندراني مطبوخ","كجم",25,25,0]
[5,"2024-01-31","العصافرة","الغربي",null,null,223,"برغر لحم متبل 100","قطعة",210,210,0]
[5,"2024-01-31","العصافرة","الغربي",null,null,222,"برغر دجاج متبل 100","قطعة",176,176,0]
[5,"2024-01-31","العصافرة","الغربي",null,null,365,"زنجر متبل 60","كجم",37,37,0]
[5,"2024-01-31","العصافرة","الغربي",null,null,617,"كريسبي وجبات - 5 قطع 60","كجم",54,54,0]
[5,"2024-01-31","العصافرة","الغربي",null,null,616,"كريسبي وجبات - 3 قطع 60","كجم",43,43,0]
[6,"2024-01-31","العصافرة","البروستد",null,null,578,"كبة مقلية مشمعة 100","قطعة",620,620,0]
[7,"2024-01-31","العصافرة","المقبلات",null,null,702,"معكرونة مسلوقة 200","قطعة",412,412,0]
[7,"2024-01-31","العصافرة","المقبلات",null,null,298,"حشوة معكرونة دجاج 100","قطعة",353,353,0]
[7,"2024-01-31","العصافرة","المقبلات",null,null,299,"حشوة معكرونة لحمة 100","قطعة",162,162,0]
[7,"2024-01-31","العصافرة","المقبلات",null,null,753,"يالنجي مطبوخ 25","كجم",45.8,45.8,0]
[8,"2024-01-31","العصافرة","المطبخ",null,null,530,"فخاد عجل شمبري","كجم",2.5,2.5,0]
[8,"2024-01-31","العصافرة","المطبخ",null,null,216,"باط ضاني","كجم",8.5,8.5,0]
[8,"2024-01-31","العصافرة","المطبخ",null,null,660,"لحمة موزات ضاني","كجم",7.12,7.12,0]
[8,"2024-01-31","العصافرة","المطبخ",null,null,769,"عظم ضاني","كجم",5.1100000000000003,5.1100000000000003,0]
[8,"2024-01-31","العصافرة","المطبخ",null,null,771,"عظم عجل","كجم",60.22,60.22,0]
[8,"2024-01-31","العصافرة","المطبخ",null,null,351,"ريش ضاني","كجم",2,2,0]
[8,"2024-01-31","العصافرة","المطبخ",null,null,724,"نخاع ضاني","قطعة",4.2,4.2,0]
[9,"2024-02-29","العصافرة","الفول و الفلافل",null,null,305,"حمص حب مسلوق دكما","كجم",23,23,0]
[10,"2024-02-29","العصافرة","الفحم",null,null,577,"كبة مشوية مشمعة 120","قطعة",20,20,0]
[11,"2024-02-29","العصافرة","المعجنات",null,null,379,"سجق متبل","كجم",13,13,0]
[11,"2024-02-29","العصافرة","المعجنات",null,null,425,"شيش معجنات متبل","كجم",20,20,0]
[11,"2024-02-29","العصافرة","المعجنات",null,null,677,"محمرة معجنات دكما","كجم",8,8,0]
[11,"2024-02-29","العصافرة","المعجنات",null,null,282,"جبنة شامية متبلة للمعجنات","كجم",10,10,0]
[11,"2024-02-29","العصافرة","المعجنات",null,null,447,"صلصة بيتزا دكما","كجم",14,14,0]
[11,"2024-02-29","العصافرة","المعجنات",null,null,374,"سبانخ مطبوخة غير متبلة","كجم",2,2,0]
[12,"2024-02-29","العصافرة","الغربي",null,null,424,"شيش غربي متبل 100","كجم",139.30000000000001,139.30000000000001,0]
[12,"2024-02-29","العصافرة","الغربي",null,null,200,"اسكالوب متبل 55","كجم",27,27,0]
[12,"2024-02-29","العصافرة","الغربي",null,null,195,"55كريسبي متبل","كجم",136.1,136.1,0]
[12,"2024-02-29","العصافرة","الغربي",null,null,649,"كوردون بلو متبل 280","قطعة",65,65,0]
[12,"2024-02-29","العصافرة","الغربي",null,null,393,"سوبريم سندويش متبل 150","قطعة",73,73,0]
[12,"2024-02-29","العصافرة","الغربي",null,null,394,"سوبريم وجبات 75","قطعة",348,348,0]
[12,"2024-02-29","العصافرة","الغربي",null,null,375,"ستيك دجاج متبل 110","كجم",11.18,11.18,0]
[12,"2024-02-29","العصافرة","الغربي",null,null,377,"ستيك لحم متبل 110","كجم",12.337999999999999,12.337999999999999,0]
[12,"2024-02-29","العصافرة","الغربي",null,null,528,"فاهيتا متبل 100","قطعة",184,184,0]
[12,"2024-02-29","العصافرة","الغربي",null,null,533,"فرانشيسكو متبل 100","قطعة",90,90,0]
[12,"2024-02-29","العصافرة","الغربي",null,null,714,"مكسيكي مطبوخ 100","قطعة",156,156,0]
[12,"2024-02-29","العصافرة","الغربي",null,null,583,"كبدة فراخ مطبوخ","كجم",38.800000000000004,38.800000000000004,0]
[12,"2024-02-29","العصافرة","الغربي",null,null,580,"كبدة اسكندراني مطبوخ","كجم",23.099999999999994,23.099999999999994,0]
[12,"2024-02-29","العصافرة","الغربي",null,null,223,"برغر لحم متبل 100","قطعة",194,194,0]
[12,"2024-02-29","العصافرة","الغربي",null,null,222,"برغر دجاج متبل 100","قطعة",144,144,0]
[12,"2024-02-29","العصافرة","الغربي",null,null,365,"زنجر متبل 60","كجم",34,34,0]
[12,"2024-02-29","العصافرة","الغربي",null,null,617,"كريسبي وجبات - 5 قطع 60","كجم",51.86,51.86,0]
[12,"2024-02-29","العصافرة","الغربي",null,null,616,"كريسبي وجبات - 3 قطع 60","كجم",47.24,47.24,0]
[13,"2024-02-29","العصافرة","البروستد",null,null,578,"كبة مقلية مشمعة 100","قطعة",615,615,0]
[14,"2024-02-29","العصافرة","المقبلات",null,null,702,"معكرونة مسلوقة 200","قطعة",407,407,0]
[14,"2024-02-29","العصافرة","المقبلات",null,null,298,"حشوة معكرونة دجاج 100","قطعة",366,366,0]
[14,"2024-02-29","العصافرة","المقبلات",null,null,299,"حشوة معكرونة لحمة 100","قطعة",143,143,0]
[14,"2024-02-29","العصافرة","المقبلات",null,null,753,"يالنجي مطبوخ 25","كجم",43.4,43.4,0]
[15,"2024-02-29","العصافرة","المطبخ",null,null,485,"عصاعيص ضاني","كجم",4.2,4.2,0]
[15,"2024-02-29","العصافرة","المطبخ",null,null,530,"فخاد عجل شمبري","كجم",2,2,0]
[15,"2024-02-29","العصافرة","المطبخ",null,null,216,"باط ضاني","كجم",9,9,0]
[15,"2024-02-29","العصافرة","المطبخ",null,null,660,"لحمة موزات ضاني","كجم",6.32,6.32,0]
[15,"2024-02-29","العصافرة","المطبخ",null,null,769,"عظم ضاني","كجم",4.25,4.25,0]
[15,"2024-02-29","العصافرة","المطبخ",null,null,771,"عظم عجل","كجم",58.75,58.75,0]
[15,"2024-02-29","العصافرة","المطبخ",null,null,351,"ريش ضاني","كجم",1,1,0]
[15,"2024-02-29","العصافرة","المطبخ",null,null,724,"نخاع ضاني","قطعة",3.5,3.5,0]
[16,"2024-02-29","العصافرة","المتنوع",null,null,654,"لبن رائب مصنع","كجم",1.5,1.5,0]
[17,"2024-02-29","العصافرة","وجبات العمال",null,null,530,"فخاد عجل شمبري","كجم",1,1,0]
[17,"2024-02-29","العصافرة","وجبات العمال",null,null,664,"لية ضاني","كجم",0.5,0.5,0]
[17,"2024-02-29","العصافرة","وجبات العمال",null,null,345,"رز عروس مطبوخ","كجم",26,26,0]
[17,"2024-02-29","العصافرة","وجبات العمال",null,null,388,"سلطة خضار دكما","كجم",17.5,17.5,0]
[17,"2024-02-29","العصافرة","وجبات العمال",null,null,136,"فوم 0.5 كغ","قطعة",160,160,0]
[17,"2024-02-29","العصافرة","وجبات العمال",null,null,547,"فوم 1/8","قطعة",20,20,0]
[17,"2024-02-29","العصافرة","وجبات العمال",null,null,702,"معكرونة مسلوقة 200","قطعة",6,6,0]
[17,"2024-02-29","العصافرة","وجبات العمال",null,null,226,"بشاميل مطبوخ","كجم",8,8,0]
[17,"2024-02-29","العصافرة","وجبات العمال",null,null,719,"موزريلا طبيعي","كجم",2,2,0]
[17,"2024-02-29","العصافرة","وجبات العمال",null,null,467,"طبق سلفر 420","قطعة",57,57,0]
[17,"2024-02-29","العصافرة","وجبات العمال",null,null,241,"بندورة مخوص","كجم",3,3,0]
[17,"2024-02-29","العصافرة","وجبات العمال",null,null,541,"فليفلة خضراء","كجم",2,2,0]
[17,"2024-02-29","العصافرة","وجبات العمال",null,null,230,"بصل يابس ابيض","كجم",4,4,0]
[17,"2024-02-29","العصافرة","وجبات العمال",null,null,215,"بازيلاء مجمدة","كجم",26,26,0]
[17,"2024-02-29","العصافرة","وجبات العمال",null,null,145,"كاسات بلاستيك ابيض","قطعة",140,140,0]
[17,"2024-02-29","العصافرة","وجبات العمال",null,null,654,"لبن رائب مصنع","كجم",15,15,0]
[17,"2024-02-29","العصافرة","وجبات العمال",null,null,656,"لحم كامل ضاني","كجم",40,40,0]
[18,"2024-03-31","العصافرة","الفحم",null,null,577,"كبة مشوية مشمعة 120","قطعة",156,156,0]
[19,"2024-03-31","العصافرة","المعجنات",null,null,379,"سجق متبل","كجم",23.4,23.4,0]
[19,"2024-03-31","العصافرة","المعجنات",null,null,425,"شيش معجنات متبل","كجم",39,39,0]
[19,"2024-03-31","العصافرة","المعجنات",null,null,677,"محمرة معجنات دكما","كجم",25,25,0]
[19,"2024-03-31","العصافرة","المعجنات",null,null,282,"جبنة شامية متبلة للمعجنات","كجم",5,5,0]
[19,"2024-03-31","العصافرة","المعجنات",null,null,447,"صلصة بيتزا دكما","كجم",42.3,42.3,0]
[19,"2024-03-31","العصافرة","المعجنات",null,null,374,"سبانخ مطبوخة غير متبلة","كجم",1,1,0]
[20,"2024-03-31","العصافرة","الغربي",null,null,424,"شيش غربي متبل 100","كجم",95.6,95.6,0]
[20,"2024-03-31","العصافرة","الغربي",null,null,200,"اسكالوب متبل 55","كجم",68.5,68.5,0]
[20,"2024-03-31","العصافرة","الغربي",null,null,195,"55كريسبي متبل","كجم",230.5,230.5,0]
[20,"2024-03-31","العصافرة","الغربي",null,null,649,"كوردون بلو متبل 280","قطعة",132,132,0]
[20,"2024-03-31","العصافرة","الغربي",null,null,393,"سوبريم سندويش متبل 150","قطعة",210,210,0]
[20,"2024-03-31","العصافرة","الغربي",null,null,394,"سوبريم وجبات 75","قطعة",751,751,0]
[20,"2024-03-31","العصافرة","الغربي",null,null,375,"ستيك دجاج متبل 110","كجم",762.2,762.2,0]
[20,"2024-03-31","العصافرة","الغربي",null,null,377,"ستيك لحم متبل 110","كجم",46.900000000000006,46.900000000000006,0]
[20,"2024-03-31","العصافرة","الغربي",null,null,528,"فاهيتا متبل 100","قطعة",321,321,0]
[20,"2024-03-31","العصافرة","الغربي",null,null,533,"فرانشيسكو متبل 100","قطعة",236,236,0]
[20,"2024-03-31","العصافرة","الغربي",null,null,714,"مكسيكي مطبوخ 100","قطعة",301.39999999999998,301.39999999999998,0]
[20,"2024-03-31","العصافرة","الغربي",null,null,583,"كبدة فراخ مطبوخ","كجم",65.210000000000008,65.210000000000008,0]
[20,"2024-03-31","العصافرة","الغربي",null,null,580,"كبدة اسكندراني مطبوخ","كجم",56.160000000000004,56.160000000000004,0]
[20,"2024-03-31","العصافرة","الغربي",null,null,223,"برغر لحم متبل 100","قطعة",323,323,0]
[20,"2024-03-31","العصافرة","الغربي",null,null,222,"برغر دجاج متبل 100","قطعة",244,244,0]
[20,"2024-03-31","العصافرة","الغربي",null,null,365,"زنجر متبل 60","كجم",75.8,75.8,0]
[20,"2024-03-31","العصافرة","الغربي",null,null,617,"كريسبي وجبات - 5 قطع 60","كجم",124.73999999999998,124.73999999999998,0]
[20,"2024-03-31","العصافرة","الغربي",null,null,616,"كريسبي وجبات - 3 قطع 60","كجم",103.06000000000002,103.06000000000002,0]
[21,"2024-03-31","العصافرة","الشاورما",null,null,402,"شاورما دجاج متبل","كجم",17.3,17.3,0]
[21,"2024-03-31","العصافرة","الشاورما",null,null,403,"شاورما لحم شمبري متبل","كجم",19.600000000000001,19.600000000000001,0]
[22,"2024-03-31","العصافرة","البروستد",null,null,578,"كبة مقلية مشمعة 100","قطعة",240,240,0]
[23,"2024-03-31","العصافرة","الملحمة",null,null,423,"شيش شرقي متبل 125","كجم",16,16,0]
[24,"2024-03-31","العصافرة","المتنوع",null,null,654,"لبن رائب مصنع","كجم",6.5,6.5,0]
[25,"2024-03-31","العصافرة","المقبلات",null,null,702,"معكرونة مسلوقة 200","قطعة",960,960,0]
[25,"2024-03-31","العصافرة","المقبلات",null,null,298,"حشوة معكرونة دجاج 100","قطعة",802,802,0]
[25,"2024-03-31","العصافرة","المقبلات",null,null,299,"حشوة معكرونة لحمة 100","قطعة",348,348,0]
[25,"2024-03-31","العصافرة","المقبلات",null,null,753,"يالنجي مطبوخ 25","كجم",97.6,97.6,0]
[26,"2024-03-31","العصافرة","المطبخ",null,null,485,"عصاعيص ضاني","كجم",1.5,1.5,0]
[26,"2024-03-31","العصافرة","المطبخ",null,null,530,"فخاد عجل شمبري","كجم",0.3,0.3,0]
[26,"2024-03-31","العصافرة","المطبخ",null,null,216,"باط ضاني","كجم",9,9,0]
[26,"2024-03-31","العصافرة","المطبخ",null,null,660,"لحمة موزات ضاني","كجم",8.68,8.68,0]
[26,"2024-03-31","العصافرة","المطبخ",null,null,769,"عظم ضاني","كجم",13.8,13.8,0]
[26,"2024-03-31","العصافرة","المطبخ",null,null,530,"فخاد عجل شمبري","كجم",19.95,19.95,0]
[27,"2024-03-31","العصافرة","وجبات العمال",null,null,530,"فخاد عجل شمبري","كجم",3,3,0]
[27,"2024-03-31","العصافرة","وجبات العمال",null,null,345,"رز عروس مطبوخ","كجم",41,41,0]
[27,"2024-03-31","العصافرة","وجبات العمال",null,null,136,"فوم 0.5 كغ","قطعة",110,110,0]
[27,"2024-03-31","العصافرة","وجبات العمال",null,null,702,"معكرونة مسلوقة 200","قطعة",30,30,0]
[27,"2024-03-31","العصافرة","وجبات العمال",null,null,226,"بشاميل مطبوخ","كجم",28,28,0]
[27,"2024-03-31","العصافرة","وجبات العمال",null,null,719,"موزريلا طبيعي","كجم",8,8,0]
[27,"2024-03-31","العصافرة","وجبات العمال",null,null,467,"طبق سلفر 420","قطعة",225,225,0]
[27,"2024-03-31","العصافرة","وجبات العمال",null,null,241,"بندورة مخوص","كجم",2,2,0]
[27,"2024-03-31","العصافرة","وجبات العمال",null,null,541,"فليفلة خضراء","كجم",2,2,0]
[27,"2024-03-31","العصافرة","وجبات العمال",null,null,230,"بصل يابس ابيض","كجم",2,2,0]
[27,"2024-03-31","العصافرة","وجبات العمال",null,null,215,"بازيلاء مجمدة","كجم",28,28,0]
[27,"2024-03-31","العصافرة","وجبات العمال",null,null,145,"كاسات بلاستيك ابيض","قطعة",110,110,0]
[27,"2024-03-31","العصافرة","وجبات العمال",null,null,654,"لبن رائب مصنع","كجم",28.5,28.5,0]
[27,"2024-03-31","العصافرة","وجبات العمال",null,null,656,"لحم كامل ضاني","كجم",56,56,0]
[27,"2024-03-31","العصافرة","وجبات العمال",null,null,714,"مكسيكي مطبوخ 100","قطعة",10,10,0]
[27,"2024-03-31","العصافرة","وجبات العمال",null,null,533,"فرانشيسكو متبل 100","قطعة",11,11,0]
[27,"2024-03-31","العصافرة","وجبات العمال",null,null,528,"فاهيتا متبل 100","قطعة",5,5,0]
[27,"2024-03-31","العصافرة","وجبات العمال",null,null,187,"شوك بلاستيك","قطعة",55,55,0]
[27,"2024-03-31","العصافرة","وجبات العمال",null,null,731,"نواعم مفرومة عجل شمبري","كجم",6,6,0]
[27,"2024-03-31","العصافرة","وجبات العمال",null,null,664,"لية ضاني","كجم",0.5,0.5,0]
[27,"2024-03-31","العصافرة","وجبات العمال",null,null,298,"حشوة معكرونة دجاج 100","قطعة",17,17,0]
[27,"2024-03-31","العصافرة","وجبات العمال",null,null,253,"بيض بوزن 1.980 كغ","صحن بيض 1980",1,1,0]
[27,"2024-03-31","العصافرة","وجبات العمال",null,null,232,"بطاطا طبيعي","كجم",15,15,0]
[28,"2024-04-30","العصافرة","الفحم",null,null,577,"كبة مشوية مشمعة 120","قطعة",175,175,0]
[29,"2024-04-30","العصافرة","المعجنات",null,null,379,"سجق متبل","كجم",41,41,0]
[29,"2024-04-30","العصافرة","المعجنات",null,null,425,"شيش معجنات متبل","كجم",59.5,59.5,0]
[29,"2024-04-30","العصافرة","المعجنات",null,null,677,"محمرة معجنات دكما","كجم",45,45,0]
[29,"2024-04-30","العصافرة","المعجنات",null,null,447,"صلصة بيتزا دكما","كجم",71.3,71.3,0]
[29,"2024-04-30","العصافرة","المعجنات",null,null,374,"سبانخ مطبوخة غير متبلة","كجم",2,2,0]
[30,"2024-04-30","العصافرة","الغربي",null,null,424,"شيش غربي متبل 100","كجم",126,126,0]
[30,"2024-04-30","العصافرة","الغربي",null,null,200,"اسكالوب متبل 55","كجم",77.3,77.3,0]
[30,"2024-04-30","العصافرة","الغربي",null,null,195,"55كريسبي متبل","كجم",395.38,395.38,0]
[30,"2024-04-30","العصافرة","الغربي",null,null,649,"كوردون بلو متبل 280","قطعة",187,187,0]
[30,"2024-04-30","العصافرة","الغربي",null,null,393,"سوبريم سندويش متبل 150","قطعة",265,265,0]
[30,"2024-04-30","العصافرة","الغربي",null,null,394,"سوبريم وجبات 75","قطعة",884,884,0]
[30,"2024-04-30","العصافرة","الغربي",null,null,375,"ستيك دجاج متبل 110","كجم",71.650000000000006,71.650000000000006,0]
[30,"2024-04-30","العصافرة","الغربي",null,null,377,"ستيك لحم متبل 110","كجم",83.499999999999986,83.499999999999986,0]
[30,"2024-04-30","العصافرة","الغربي",null,null,528,"فاهيتا متبل 100","قطعة",487,487,0]
[30,"2024-04-30","العصافرة","الغربي",null,null,533,"فرانشيسكو متبل 100","قطعة",330,330,0]
[30,"2024-04-30","العصافرة","الغربي",null,null,714,"مكسيكي مطبوخ 100","قطعة",365,365,0]
[30,"2024-04-30","العصافرة","الغربي",null,null,583,"كبدة فراخ مطبوخ","كجم",101.14,101.14,0]
[30,"2024-04-30","العصافرة","الغربي",null,null,580,"كبدة اسكندراني مطبوخ","كجم",51.25,51.25,0]
[30,"2024-04-30","العصافرة","الغربي",null,null,223,"برغر لحم متبل 100","قطعة",567,567,0]
[30,"2024-04-30","العصافرة","الغربي",null,null,222,"برغر دجاج متبل 100","قطعة",421,421,0]
[30,"2024-04-30","العصافرة","الغربي",null,null,365,"زنجر متبل 60","كجم",137.50000000000003,137.50000000000003,0]
[30,"2024-04-30","العصافرة","الغربي",null,null,617,"كريسبي وجبات - 5 قطع 60","كجم",194.29999999999998,194.29999999999998,0]
[30,"2024-04-30","العصافرة","الغربي",null,null,616,"كريسبي وجبات - 3 قطع 60","كجم",140.05999999999997,140.05999999999997,0]
[31,"2024-04-30","العصافرة","الشواية",null,null,335,"دجاج ني شواية متبل 1650","قطعة",280,280,0]
[32,"2024-04-30","العصافرة","المقبلات",null,null,702,"معكرونة مسلوقة 200","قطعة",1087,1087,0]
[32,"2024-04-30","العصافرة","المقبلات",null,null,298,"حشوة معكرونة دجاج 100","قطعة",1016,1016,0]
[32,"2024-04-30","العصافرة","المقبلات",null,null,299,"حشوة معكرونة لحمة 100","قطعة",354,354,0]
[32,"2024-04-30","العصافرة","المقبلات",null,null,753,"يالنجي مطبوخ 25","كجم",114.4,114.4,0]
[33,"2024-04-30","العصافرة","المطبخ",null,null,216,"باط ضاني","كجم",39.5,39.5,0]
[33,"2024-04-30","العصافرة","المطبخ",null,null,660,"لحمة موزات ضاني","كجم",15.955,15.955,0]
[33,"2024-04-30","العصافرة","المطبخ",null,null,769,"عظم ضاني","كجم",20.499999999999996,20.499999999999996,0]
[33,"2024-04-30","العصافرة","المطبخ",null,null,530,"فخاد عجل شمبري","كجم",4,4,0]
[33,"2024-04-30","العصافرة","المطبخ",null,null,724,"نخاع ضاني","قطعة",1.3,1.3,0]
[33,"2024-04-30","العصافرة","المطبخ",null,null,718,"موزات عجل شمبري","كجم",3.8,3.8,0]
[33,"2024-04-30","العصافرة","المطبخ",null,null,771,"عظم عجل","كجم",102.45,102.45,0]
[34,"2024-04-30","العصافرة","وجبات العمال",null,null,236,"بقدونس","كجم",5,5,0]
[34,"2024-04-30","العصافرة","وجبات العمال",null,null,367,"زيت زيتون فرط","كجم",2,2,0]
[34,"2024-04-30","العصافرة","وجبات العمال",null,null,530,"فخاد عجل شمبري","كجم",2.5,2.5,0]
[34,"2024-04-30","العصافرة","وجبات العمال",null,null,345,"رز عروس مطبوخ","كجم",78,78,0]
[34,"2024-04-30","العصافرة","وجبات العمال",null,null,136,"فوم 0.5 كغ","قطعة",200,200,0]
[34,"2024-04-30","العصافرة","وجبات العمال",null,null,702,"معكرونة مسلوقة 200","قطعة",22,22,0]
[34,"2024-04-30","العصافرة","وجبات العمال",null,null,226,"بشاميل مطبوخ","كجم",20,20,0]
[34,"2024-04-30","العصافرة","وجبات العمال",null,null,719,"موزريلا طبيعي","كجم",2,2,0]
[34,"2024-04-30","العصافرة","وجبات العمال",null,null,467,"طبق سلفر 420","قطعة",1,1,0]
[34,"2024-04-30","العصافرة","وجبات العمال",null,null,241,"بندورة مخوص","كجم",3,3,0]
[34,"2024-04-30","العصافرة","وجبات العمال",null,null,541,"فليفلة خضراء","كجم",6,6,0]
[34,"2024-04-30","العصافرة","وجبات العمال",null,null,230,"بصل يابس ابيض","كجم",10.5,10.5,0]
[34,"2024-04-30","العصافرة","وجبات العمال",null,null,215,"بازيلاء مجمدة","كجم",35,35,0]
[34,"2024-04-30","العصافرة","وجبات العمال",null,null,145,"كاسات بلاستيك ابيض","قطعة",150,150,0]
[34,"2024-04-30","العصافرة","وجبات العمال",null,null,654,"لبن رائب مصنع","كجم",32,32,0]
[34,"2024-04-30","العصافرة","وجبات العمال",null,null,714,"مكسيكي مطبوخ 100","قطعة",4,4,0]
[34,"2024-04-30","العصافرة","وجبات العمال",null,null,533,"فرانشيسكو متبل 100","قطعة",3,3,0]
[34,"2024-04-30","العصافرة","وجبات العمال",null,null,528,"فاهيتا متبل 100","قطعة",8,8,0]
[34,"2024-04-30","العصافرة","وجبات العمال",null,null,731,"نواعم مفرومة عجل شمبري","كجم",2.5,2.5,0]
[34,"2024-04-30","العصافرة","وجبات العمال",null,null,253,"بيض بوزن 1.980 كغ","صحن بيض 1980",45,45,0]
[34,"2024-04-30","العصافرة","وجبات العمال",null,null,232,"بطاطا طبيعي","كجم",31,31,0]
[34,"2024-04-30","العصافرة","وجبات العمال",null,null,353,"زبدة نباتي فيرن","كجم",1,1,0]
[34,"2024-04-30","العصافرة","وجبات العمال",null,null,618,"كريمة طبخ 1 كغ","كجم",1,1,0]
[34,"2024-04-30","العصافرة","وجبات العمال",null,null,390,"سلطة كول سلو دكما","كجم",24.4,24.4,0]
[35,"2024-05-16","العصافرة","الفحم",null,null,577,"كبة مشوية مشمعة 120","قطعة",161,161,0]
[36,"2024-05-16","العصافرة","المقبلات",null,null,379,"سجق متبل","كجم",18.399999999999999,18.399999999999999,0]
[36,"2024-05-16","العصافرة","المقبلات",null,null,425,"شيش معجنات متبل","كجم",29.3,29.3,0]
[36,"2024-05-16","العصافرة","المقبلات",null,null,677,"محمرة معجنات دكما","كجم",21,21,0]
[36,"2024-05-16","العصافرة","المقبلات",null,null,447,"صلصة بيتزا دكما","كجم",35,35,0]
[37,"2024-05-16","العصافرة","الغربي",null,null,424,"شيش غربي متبل 100","كجم",51.5,51.5,0]
[37,"2024-05-16","العصافرة","الغربي",null,null,200,"اسكالوب متبل 55","كجم",33.6,33.6,0]
[37,"2024-05-16","العصافرة","الغربي",null,null,195,"55كريسبي متبل","كجم",165.4,165.4,0]
[37,"2024-05-16","العصافرة","الغربي",null,null,649,"كوردون بلو متبل 280","قطعة",109,109,0]
[37,"2024-05-16","العصافرة","الغربي",null,null,393,"سوبريم سندويش متبل 150","قطعة",99,99,0]
[37,"2024-05-16","العصافرة","الغربي",null,null,394,"سوبريم وجبات 75","قطعة",318,318,0]
[37,"2024-05-16","العصافرة","الغربي",null,null,375,"ستيك دجاج متبل 110","كجم",17.7,17.7,0]
[37,"2024-05-16","العصافرة","الغربي",null,null,377,"ستيك لحم متبل 110","كجم",19.3,19.3,0]
[37,"2024-05-16","العصافرة","الغربي",null,null,528,"فاهيتا متبل 100","قطعة",227,227,0]
[37,"2024-05-16","العصافرة","الغربي",null,null,533,"فرانشيسكو متبل 100","قطعة",182,182,0]
[37,"2024-05-16","العصافرة","الغربي",null,null,714,"مكسيكي مطبوخ 100","قطعة",174,174,0]
[37,"2024-05-16","العصافرة","الغربي",null,null,583,"كبدة فراخ مطبوخ","كجم",55.949999999999996,55.949999999999996,0]
[37,"2024-05-16","العصافرة","الغربي",null,null,580,"كبدة اسكندراني مطبوخ","كجم",26.500000000000004,26.500000000000004,0]
[37,"2024-05-16","العصافرة","الغربي",null,null,223,"برغر لحم متبل 100","قطعة",200,200,0]
[37,"2024-05-16","العصافرة","الغربي",null,null,222,"برغر دجاج متبل 100","قطعة",216,216,0]
[37,"2024-05-16","العصافرة","الغربي",null,null,365,"زنجر متبل 60","كجم",42.400000000000006,42.400000000000006,0]
[37,"2024-05-16","العصافرة","الغربي",null,null,273,"تومية غربي دكما","كجم",4.8,4.8,0]
[37,"2024-05-16","العصافرة","الغربي",null,null,617,"كريسبي وجبات - 5 قطع 60","كجم",89.950000000000017,89.950000000000017,0]
[37,"2024-05-16","العصافرة","الغربي",null,null,616,"كريسبي وجبات - 3 قطع 60","كجم",50.83,50.83,0]
[38,"2024-05-16","العصافرة","البروستد",null,null,578,"كبة مقلية مشمعة 100","قطعة",280,280,0]
[39,"2024-05-16","العصافرة","الملحمة",null,null,664,"لية ضاني","كجم",5.7,5.7,0]
[40,"2024-05-16","العصافرة","المقبلات",null,null,702,"معكرونة مسلوقة 200","قطعة",469,469,0]
[40,"2024-05-16","العصافرة","المقبلات",null,null,298,"حشوة معكرونة دجاج 100","قطعة",347,347,0]
[40,"2024-05-16","العصافرة","المقبلات",null,null,299,"حشوة معكرونة لحمة 100","قطعة",156,156,0]
[40,"2024-05-16","العصافرة","المقبلات",null,null,753,"يالنجي مطبوخ 25","كجم",50.7,50.7,0]
[41,"2024-05-16","العصافرة","المطبخ",null,null,216,"باط ضاني","كجم",48,48,0]
[41,"2024-05-16","العصافرة","المطبخ",null,null,660,"لحمة موزات ضاني","كجم",6.72,6.72,0]
[41,"2024-05-16","العصافرة","المطبخ",null,null,769,"عظم ضاني","كجم",9.1,9.1,0]
[41,"2024-05-16","العصافرة","المطبخ",null,null,724,"نخاع ضاني","قطعة",7.5,7.5,0]
[41,"2024-05-16","العصافرة","المطبخ",null,null,718,"موزات عجل شمبري","كجم",8.9500000000000011,8.9500000000000011,0]
[41,"2024-05-16","العصافرة","المطبخ",null,null,771,"عظم عجل","كجم",54.8,54.8,0]
[42,"2024-05-16","العصافرة","وجبات العمال",null,null,530,"فخاد عجل شمبري","كجم",4,4,0]
[42,"2024-05-16","العصافرة","وجبات العمال",null,null,345,"رز عروس مطبوخ","كجم",95,95,0]
[42,"2024-05-16","العصافرة","وجبات العمال",null,null,136,"فوم 0.5 كغ","قطعة",285,285,0]
[42,"2024-05-16","العصافرة","وجبات العمال",null,null,702,"معكرونة مسلوقة 200","قطعة",6,6,0]
[42,"2024-05-16","العصافرة","وجبات العمال",null,null,226,"بشاميل مطبوخ","كجم",8,8,0]
[42,"2024-05-16","العصافرة","وجبات العمال",null,null,719,"موزريلا طبيعي","كجم",8,8,0]
[42,"2024-05-16","العصافرة","وجبات العمال",null,null,467,"طبق سلفر 420","قطعة",130,130,0]
[42,"2024-05-16","العصافرة","وجبات العمال",null,null,241,"بندورة مخوص","كجم",14,14,0]
[42,"2024-05-16","العصافرة","وجبات العمال",null,null,541,"فليفلة خضراء","كجم",6.5,6.5,0]
[42,"2024-05-16","العصافرة","وجبات العمال",null,null,230,"بصل يابس ابيض","كجم",11.5,11.5,0]
[42,"2024-05-16","العصافرة","وجبات العمال",null,null,215,"بازيلاء مجمدة","كجم",45,45,0]
[42,"2024-05-16","العصافرة","وجبات العمال",null,null,145,"كاسات بلاستيك ابيض","قطعة",285,285,0]
[42,"2024-05-16","العصافرة","وجبات العمال",null,null,654,"لبن رائب مصنع","كجم",59.5,59.5,0]
[42,"2024-05-16","العصافرة","وجبات العمال",null,null,714,"مكسيكي مطبوخ 100","قطعة",18,18,0]
[42,"2024-05-16","العصافرة","وجبات العمال",null,null,533,"فرانشيسكو متبل 100","قطعة",13,13,0]
[42,"2024-05-16","العصافرة","وجبات العمال",null,null,528,"فاهيتا متبل 100","قطعة",3,3,0]
[42,"2024-05-16","العصافرة","وجبات العمال",null,null,187,"شوك بلاستيك","قطعة",50,50,0]
[42,"2024-05-16","العصافرة","وجبات العمال",null,null,664,"لية ضاني","كجم",1,1,0]
[42,"2024-05-16","العصافرة","وجبات العمال",null,null,353,"زبدة نباتي فيرن","كجم",1,1,0]
[42,"2024-05-16","العصافرة","وجبات العمال",null,null,618,"كريمة طبخ 1 كغ","كجم",1,1,0]
[42,"2024-05-16","العصافرة","وجبات العمال",null,null,335,"دجاج ني شواية متبل 1650","قطعة",2,2,0]
[42,"2024-05-16","العصافرة","وجبات العمال",null,null,390,"سلطة كول سلو دكما","كجم",42.4,42.4,0]
[42,"2024-05-16","العصافرة","وجبات العمال",null,null,657,"لحمة حواوشي دكما","كجم",0.5,0.5,0]
[42,"2024-05-16","العصافرة","وجبات العمال",null,null,446,"صفيحة بندورة للمعجنات","كجم",0.5,0.5,0]
[43,"2024-01-31","ميامي","الفول و الفلافل",null,null,305,"حمص حب مسلوق دكما","كجم",246.5,246.5,0]
[43,"2024-01-31","ميامي","الفول و الفلافل",null,null,479,"عجينة فلافل دكما","كجم",593.1,593.1,0]
[43,"2024-01-31","ميامي","الفول و الفلافل",null,null,210,"بابا غنوج دكما","كجم",135,135,0]
[43,"2024-01-31","ميامي","الفول و الفلافل",null,null,699,"مسبحة دكما","كجم",618.64,618.64,0]
[43,"2024-01-31","ميامي","الفول و الفلافل",null,null,675,"محمرة دكما","كجم",70.150000000000006,70.150000000000006,0]
[43,"2024-01-31","ميامي","الفول و الفلافل",null,null,671,"متبل دكما","كجم",123.2,123.2,0]
[43,"2024-01-31","ميامي","الفول و الفلافل",null,null,218,"بدوة دكما","كجم",281.87,281.87,0]
[43,"2024-01-31","ميامي","الفول و الفلافل",null,null,546,"فول مسلوق حب دكما","كجم",24,24,0]
[44,"2024-01-31","ميامي","السندويش",null,null,218,"بدوة دكما","كجم",7.5,7.5,0]
[44,"2024-01-31","ميامي","السندويش",null,null,424,"شيش غربي متبل 100","كجم",3,3,0]
[44,"2024-01-31","ميامي","السندويش",null,null,195,"55كريسبي متبل","كجم",32.1,32.1,0]
[44,"2024-01-31","ميامي","السندويش",null,null,583,"كبدة فراخ مطبوخ","كجم",2.1,2.1,0]
[44,"2024-01-31","ميامي","السندويش",null,null,365,"زنجر متبل 60","كجم",57.2,57.2,0]
[44,"2024-01-31","ميامي","السندويش",null,null,261,"تومية بيضاء دكما (ترابيع)","كجم",8,8,0]
[44,"2024-01-31","ميامي","السندويش",null,null,269,"تومية حمراء سندويش 40","قطعة",1300,1300,0]
[44,"2024-01-31","ميامي","السندويش",null,null,273,"تومية غربي دكما","كجم",155.19999999999999,155.19999999999999,0]

{"sheet":"ف. تحويلات الفروع","index":4,"n_rows":146,"n_cols":9,"rows_kept":146,"cut":false,"hidden":false,"merged":[]}
[]
[]
[]
[null,null,null,"رقم الفاتورة",3]
[]
[null,null,null,"التاريخ","15 مايو - 2024"]
[]
[null,null,null,"من فرع","العصافرة"]
[]
[null,null,null,"إلى فرع","المستودع الرئيسي"]
[null,null,null,261,null,null,100,100,0]
[null,null,"م","الكود","إسم الصنف","الوحدة","الكمية","المسجل","الفرق"]
[null,null,{"$f":"IF(D13=\"\",\"\",ROW(C13)-ROW($C$12))","v":1},322,"خيار","كجم",56,56,0]
[null,null,{"$f":"IF(D14=\"\",\"\",ROW(C14)-ROW($C$12))","v":2},316,"خس","كجم",15,15,0]
[null,null,""]
[null,null,""]
[null,null,""]
[null,null,""]
[null,null,""]
[null,null,""]
[null,null,""]
[null,null,""]
[null,null,""]
[null,null,""]
[null,null,""]
[null,null,""]
[null,null,""]
[null,null,""]
[null,null,""]
[null,null,""]
[null,null,""]
[null,null,""]
[null,null,""]
[null,null,""]
[null,null,""]
[null,null,""]
[null,null,""]
[null,null,""]
[null,null,""]
[null,null,""]
[null,null,""]
[null,null,""]
[null,null,""]
[null,null,""]
[null,null,""]
[null,null,""]
[null,null,""]
[null,null,""]
[null,null,""]
[null,null,""]
[null,null,""]
[null,null,""]
[null,null,"م","الكود","إسم الصنف","الوحدة","الكمية","المسجل","الفرق"]
[null,null,""]
[null,null,""]
[null,null,""]
[null,null,""]
[null,null,""]
[null,null,""]
[null,null,""]
[null,null,""]
[null,null,""]
[null,null,""]
[null,null,""]
[null,null,""]
[null,null,""]
[null,null,""]
[null,null,""]
[null,null,""]
[null,null,""]
[null,null,""]
[null,null,""]
[null,null,""]
[null,null,""]
[null,null,""]
[null,null,""]
[null,null,""]
[null,null,{"$f":"IF(D78=\"\",\"\",ROW(C78)-ROW($C$12))","v":""}]
[null,null,""]
[null,null,""]
[null,null,""]
[null,null,""]
[null,null,""]
[null,null,""]
[null,null,""]
[null,null,""]
[null,null,""]
[null,null,""]
[null,null,""]
[null,null,""]
[null,null,""]
[null,null,""]
[null,null,""]
[null,null,""]
[null,null,""]
[null,null,""]
[null,null,""]
[null,null,""]
[null,null,""]
[null,null,""]
[null,null,"م","الكود","إسم الصنف","الوحدة","الكمية","المسجل","الفرق"]
[]
[]
[]
[]
[]
[null,null,""]
[null,null,""]
[null,null,""]
[null,null,""]
[null,null,""]
[null,null,""]
[null,null,""]
[null,null,""]
[null,null,""]
[null,null,""]
[null,null,""]
[null,null,""]
[null,null,""]
[null,null,""]
[null,null,""]
[null,null,""]
[null,null,""]
[null,null,""]
[null,null,""]
[null,null,""]
[null,null,""]
[null,null,""]
[null,null,""]
[null,null,""]
[null,null,""]
[null,null,""]
[null,null,""]
[null,null,""]
[null,null,""]
[null,null,""]
[null,null,""]
[null,null,""]
[null,null,""]
[null,null,""]
[null,null,""]
[null,null,{"$f":"IF(D142=\"\",\"\",ROW(C142)-ROW($C$12))","v":""}]
[null,null,""]
[null,null,""]
[null,null,""]
[null,null,""]

{"sheet":"ف. تحويلات الأقسام","index":5,"n_rows":146,"n_cols":9,"rows_kept":146,"cut":false,"hidden":false,"merged":[]}
[]
[]
[]
[null,null,null,"رقم الفاتورة",1]
[]
[null,null,null,"التاريخ","16 مايو - 2024"]
[]
[null,null,null,"إسم الفرع","العصافرة"]
[]
[null,null,null,"إسم القسم","فول و فلافل"]
[null,null,null,261,null,null,100,100,0]
[null,null,"م","الكود","إسم الصنف","الوحدة","الكمية","المسجل","الفرق"]
[null,null,{"$f":"IF(D13=\"\",\"\",ROW(C13)-ROW($C$12))","v":1},546,"فول مسلوق حب دكما","كجم",1,1,0]
[null,null,{"$f":"IF(D14=\"\",\"\",ROW(C14)-ROW($C$12))","v":2},699,"مسبحة دكما","كجم",1.5,1.5,0]
[null,null,""]
[null,null,""]
[null,null,""]
[null,null,""]
[null,null,""]
[null,null,""]
[null,null,""]
[null,null,""]
[null,null,""]
[null,null,""]
[null,null,""]
[null,null,""]
[null,null,""]
[null,null,""]
[null,null,""]
[null,null,""]
[null,null,""]
[null,null,""]
[null,null,""]
[null,null,""]
[null,null,""]
[null,null,""]
[null,null,""]
[null,null,""]
[null,null,""]
[null,null,""]
[null,null,""]
[null,null,""]
[null,null,""]
[null,null,""]
[null,null,""]
[null,null,""]
[null,null,""]
[null,null,""]
[null,null,""]
[null,null,""]
[null,null,""]
[null,null,""]
[null,null,"م","الكود","إسم الصنف","الوحدة","الكمية","المسجل","الفرق"]
[null,null,""]
[null,null,""]
[null,null,""]
[null,null,""]
[null,null,""]
[null,null,""]
[null,null,""]
[null,null,""]
[null,null,""]
[null,null,""]
[null,null,""]
[null,null,""]
[null,null,""]
[null,null,""]
[null,null,""]
[null,null,""]
[null,null,""]
[null,null,""]
[null,null,""]
[null,null,""]
[null,null,""]
[null,null,""]
[null,null,""]
[null,null,""]
[null,null,{"$f":"IF(D78=\"\",\"\",ROW(C78)-ROW($C$12))","v":""}]
[null,null,""]
[null,null,""]
[null,null,""]
[null,null,""]
[null,null,""]
[null,null,""]
[null,null,""]
[null,null,""]
[null,null,""]
[null,null,""]
[null,null,""]
[null,null,""]
[null,null,""]
[null,null,""]
[null,null,""]
[null,null,""]
[null,null,""]
[null,null,""]
[null,null,""]
[null,null,""]
[null,null,""]
[null,null,""]
[null,null,"م","الكود","إسم الصنف","الوحدة","الكمية","المسجل","الفرق"]
[]
[]
[]
[]
[]
[null,null,""]
[null,null,""]
[null,null,""]
[null,null,""]
[null,null,""]
[null,null,""]
[null,null,""]
[null,null,""]
[null,null,""]
[null,null,""]
[null,null,""]
[null,null,""]
[null,null,""]
[null,null,""]
[null,null,""]
[null,null,""]
[null,null,""]
[null,null,""]
[null,null,""]
[null,null,""]
[null,null,""]
[null,null,""]
[null,null,""]
[null,null,""]
[null,null,""]
[null,null,""]
[null,null,""]
[null,null,""]
[null,null,""]
[null,null,""]
[null,null,""]
[null,null,""]
[null,null,""]
[null,null,""]
[null,null,""]
[null,null,{"$f":"IF(D142=\"\",\"\",ROW(C142)-ROW($C$12))","v":""}]
[null,null,""]
[null,null,""]
[null,null,""]
[null,null,""]

{"sheet":"Test1","index":6,"n_rows":0,"n_cols":0,"rows_kept":0,"cut":false,"hidden":false,"merged":[]}

{"sheet":"Test2","index":7,"n_rows":0,"n_cols":0,"rows_kept":0,"cut":false,"hidden":false,"merged":[]}

{"sheet":"Sheet1","index":8,"n_rows":1,"n_cols":12,"rows_kept":1,"cut":false,"hidden":false,"merged":[]}
["0","التاريخ","من فرع","إلى فرع","م","الشهر","كود الصنف","اسم الصنف","الوحدة","الكمية","المسجل","الفرق"]

{"sheet":"List","index":9,"n_rows":18,"n_cols":2,"rows_kept":18,"cut":false,"hidden":false,"merged":[]}
["العصافرة","الفول و الفلافل"]
["ميامي","السندويش"]
["سان استيفانو","العربي"]
["بشاير الخير","المعجنات"]
["المستودع الرئيسي","الشواية"]
[null,"البروستد"]
[null,"المسحب"]
[null,"الغربي"]
[null,"المازة"]
[null,"الملحمة"]
[null,"الفحم"]
[null,"المناسف"]
[null,"الشاورما"]
[null,"المقبلات"]
[null,"الخضار"]
[null,"المتنوع"]
[null,"المطبخ"]
[null,"وجبات العمال"]